fUSD/lending_fUSD_20250223
["ID","MTS","AMOUNT","RATE_DAILY","PERIOD"]
[354170282,1740325845931,-309.88966976,0.000182,2]
[354170283,1740325845941,-2389.03032925,0.000183,2]
[354170284,1740325845952,-1207.83159087,0.000183,2]
[354170285,1740325845963,-658.25955996,0.000183,2]
[354170286,1740325845974,-637.6499958,0.000183,2]
[354170287,1740325846018,-28419.4284567,0.000183,2]
[354170288,1740325846053,-959.04351277,0.000183,2]
[354170289,1740325846108,-370.9414182,0.000183,2]
[354170290,1740325846280,-489.23760382,0.000183,2]
[354170294,1740326088975,177.9,8.767e-05,2]
[354170296,1740326141666,150720.79579168,0.0002,120]
[354170299,1740326703856,23618.52451536,0.0002036,120]
[354170300,1740326704200,23618.52451536,0.0002036,120]
[354170301,1740326704576,23618.52451536,0.0002036,120]
[354170302,1740326704921,23618.52451536,0.0002036,120]
[354170303,1740326711660,53741.00157761,0.0002036,120]
[354170304,1740326712492,53741.00157761,0.0002036,120]
[354170305,1740326712794,53741.00157761,0.0002036,120]
[354170306,1740326713171,53741.00157761,0.0002036,120]
[354170307,1740326718832,200.0,0.0002036,120]
[354170308,1740326719254,200.0,0.0002036,120]
[354170309,1740326719543,200.0,0.0002036,120]
[354170310,1740326725045,1471.3110884,0.0002036,120]
[354170311,1740326725383,1471.3110884,0.0002036,120]
[354170312,1740326725709,1471.3110884,0.0002036,120]
[354170313,1740326726037,1471.3110884,0.0002036,120]
[354170314,1740326733398,817.90481645,0.0002036,120]
[354170315,1740326733469,817.90481645,0.0002036,120]
[354170316,1740326733718,817.90481645,0.0002036,120]
[354170317,1740326734077,817.90481645,0.0002036,120]
[354170318,1740326741154,200.0,0.00020362,120]
[354170319,1740326741467,200.0,0.00020362,120]
[354170320,1740326749206,20185.40013034,0.00020362,120]
[354170321,1740326749639,20185.40013034,0.00020362,120]
[354170322,1740326750055,20185.40013034,0.00020362,120]
[354170323,1740326750415,20185.40013034,0.00020362,120]
[354170324,1740326768237,134641.128978,0.00020362,120]
[354170325,1740326768537,134641.128978,0.00020362,120]
[354170326,1740326768909,134641.128978,0.00020362,120]
[354170327,1740326769233,134641.128978,0.00020362,120]
[354170328,1740326775755,43999.19969025,0.00020362,120]
[354170329,1740326776098,43999.19969025,0.00020362,120]
[354170330,1740326776387,43999.19969025,0.00020362,120]
[354170331,1740326776725,43999.19969025,0.00020362,120]
[354170332,1740326782461,609.019701,0.00020362,120]
[354170333,1740326782887,609.019701,0.00020362,120]
[354170334,1740326783377,609.019701,0.00020362,120]
[354170335,1740326783690,609.019701,0.00020362,120]
[354170336,1740326788982,6794.59576134,0.00020362,120]
[354170337,1740326789155,6794.59576134,0.00020362,120]
[354170338,1740326789452,6794.59576134,0.00020362,120]
[354170339,1740326789800,6794.59576134,0.00020362,120]
[354170340,1740326796967,4312.62017226,0.00020362,120]
[354170341,1740326797382,4312.62017226,0.00020362,120]
[354170342,1740326797746,4312.62017226,0.00020362,120]
[354170343,1740326798037,4312.62017226,0.00020362,120]
[354170344,1740326805254,200.0,0.00020362,120]
[354170345,1740326813502,569.70289008,0.00020362,120]
[354170346,1740326813766,569.70289008,0.00020362,120]
[354170347,1740326814063,569.70289008,0.00020362,120]
[354170348,1740326814345,569.70289008,0.00020362,120]
[354170349,1740326826585,686.0,9.514e-05,2]
[354170352,1740326956217,-550.0,0.0001,2]
[354170365,1740327032060,-150.561235,0.00010958,2]
[354170366,1740327032071,-157.818034,0.00010958,2]
[354170367,1740327032081,-155.335425,0.00010958,2]
[354170368,1740327032091,-150.841519,0.00010958,2]
[354170369,1740327032100,-150.0,0.00011,2]
[354170370,1740327032109,-150.841519,0.00011041,2]
[354170371,1740327032118,-150.561235,0.00011123,2]
[354170372,1740327032129,-150.841519,0.00011123,2]
[354170373,1740327032139,-150.841519,0.00011205,2]
[354170374,1740327032149,-150.561235,0.00011287,2]
[354170375,1740327032160,-150.841519,0.00011287,2]
[354170376,1740327032170,-150.841519,0.00011369,2]
[354170377,1740327032180,-600.0,0.00012,2]
[354170378,1740327032190,-162.76,0.00012885,2]
[354170379,1740327032200,-319.0,0.000131,2]
[354170380,1740327032211,-196.2,0.00013699,2]
[354170381,1740327032220,-650.0,0.00014,2]
[354170382,1740327032230,-729.56,0.00014712,2]
[354170383,1740327032240,-307.4854,0.00015416,2]
[354170384,1740327032251,-177.9,0.00015516,2]
[354170385,1740327032260,-700.0,0.00016,2]
[354170386,1740327032270,-250.0,0.00016045,2]
[354170387,1740327032279,-200.0,0.00016102,2]
[354170388,1740327032288,-440.33,0.00016384,2]
[354170389,1740327032298,-300.0,0.00016433,2]
[354170390,1740327032307,-4000.0,0.00016434,2]
[354170391,1740327032316,-1000.0,0.00016633,2]
[354170392,1740327032325,-3425.25,0.00016794,2]
[354170393,1740327032335,-500.0,0.0001683,2]
[354170394,1740327032344,-472.48,0.00016867,2]
[354170395,1740327032354,-729.56,0.00016976,2]
[354170396,1740327032363,-150.0,0.00017315,2]
[354170397,1740327032372,-440.33,0.00017341,2]
[354170398,1740327032381,-1335.62,0.00017367,2]
[354170399,1740327032391,-217.64,0.00017376,2]
[354170400,1740327032400,-773.85,0.00017534,2]
[354170401,1740327032410,-440.41,0.00017534,2]
[354170402,1740327032420,-405.86,0.00017534,2]
[354170403,1740327032428,-865.89,0.00017541,2]
[354170404,1740327032438,-776.31,0.00017541,2]
[354170405,1740327032561,-776.31,0.00017541,2]
[354170406,1740327032570,-776.31,0.00017541,2]
[354170407,1740327032580,-776.31,0.00017541,2]
[354170408,1740327032590,-776.31,0.00017541,2]
[354170410,1740327032599,-775.05,0.00017541,2]
[354170411,1740327032608,-847.1567406,0.00017671,2]
[354170414,1740327032620,-140.2932594,0.00017671,2]
[354170416,1740327032630,-987.45,0.00017671,2]
[354170418,1740327032639,-233.2,0.00017671,2]
[354170420,1740327032648,-432.312861,0.00017843,2]
[354170422,1740327032657,-156.34424983,0.00018079,2]
[354170424,1740327032670,-397.2509,0.00018081,2]
[354170425,1740327032680,-770.50361735,0.00018082,2]
[354170428,1740327032691,-116.83084618,0.00018082,2]
[354170430,1740327032701,-473.76614185,0.00018089,2]
[354170434,1740327032733,-1447.70970757,0.00018089,2]
[354170436,1740327032746,-4024.85860866,0.00018089,2]
[354170438,1740327032756,-887.33446353,0.00018117,2]
[354170440,1740327032765,-1065.022,0.0001812,2]
[354170442,1740327032774,-199.27211327,0.0001812,2]
[354170445,1740327032789,-1387.33138673,0.0001812,2]
[354170447,1740327032798,-63.32888996,0.00018124,2]
[354170449,1740327032810,-1616.81290277,0.00018124,2]
[354170452,1740327032827,-4266.1926653,0.00018124,2]
[354170454,1740327032836,-156.34424983,0.0001815,2]
[354170456,1740327032846,-887.33446353,0.00018153,2]
[354170457,1740327032855,-5946.33445803,0.00018158,2]
[354170459,1740327032864,-18266.67332281,0.00018171,2]
[354170464,1740327032899,-323.14844691,0.00018171,2]
[354170467,1740327032918,-499.16312608,0.00018171,2]
[354170469,1740327032929,-277.6933393,0.00018171,2]
[354170471,1740327032939,-1948.08965101,0.00018172,2]
[354170473,1740327032951,-466.19159868,0.00018172,2]
[354170633,1740327037916,-59463.70741992,0.00018172,2]
[354170634,1740327037933,-1070.70831661,0.00018172,2]
[354170635,1740327038034,-23474.70189541,0.00018172,2]
[354170636,1740327038046,-1631.0,0.00018172,2]
[354170637,1740327038059,-4875.0,0.00018172,2]
[354170638,1740327038076,-432.97946586,0.00018172,2]
[354170639,1740327038089,-296.58564169,0.00018172,2]
[354170640,1740327038101,-4987.94296,0.00018172,2]
[354170641,1740327038131,-3428.33794182,0.00018172,2]
[354170642,1740327038142,-6368.11,0.00018172,2]
[354170643,1740327038154,-3070.18412211,0.00018172,2]
[354170644,1740327038165,-6035.3039413,0.00018172,2]
[354170645,1740327038185,-2926.26580643,0.00018172,2]
[354170646,1740327038197,-464.20844926,0.00018172,2]
[354170648,1740327038241,-453.07155895,0.00018172,2]
[354170854,1740327040225,-311.79273284,0.00018089,2]
[354170856,1740327040235,-629.88726716,0.00018172,2]
[354170858,1740327040246,-406.7955218,0.00018172,2]
[354170861,1740327040258,-1113.7431523,0.00018172,2]
[354170864,1740327040282,-942.46523803,0.00018172,2]
[354170870,1740327040333,-28943.13638359,0.00018172,2]
[354170873,1740327040345,-9156.51173328,0.00018172,2]
[354170875,1740327040356,-699.05000001,0.00018172,2]
[354170877,1740327040368,-357.27089722,0.00018172,2]
[354170879,1740327040379,-2821.7,0.00018172,2]
[354170881,1740327040391,-905.81429486,0.00018172,2]
[354170893,1740327040503,-28702.85650657,0.00018172,2]
[354170895,1740327040515,-500.0,0.00018172,2]
[354170896,1740327040526,-1957.5,0.00018172,2]
[354170897,1740327040538,-438.68061457,0.00018172,2]
[354170898,1740327040550,-753.69950238,0.00018172,2]
[354170899,1740327040562,-730.90623362,0.00018172,2]
[354170900,1740327040582,-625.42636932,0.00018172,2]
[354170902,1740327040593,-387.87211701,0.00018172,2]
[354170910,1740327040657,-293.055,0.00018172,2]
[354170912,1740327040671,-99119.39259908,0.00018172,2]
[354170914,1740327040683,-10759.49141025,0.00018172,2]
[354170916,1740327040693,-491.92,0.00018172,2]
[354170918,1740327040703,-4152.70357787,0.00018179,2]
[354170920,1740327040715,-719.82317009,0.00018179,2]
[354170925,1740327040753,-4810.8123696,0.00018179,2]
[354170927,1740327040764,-500.0,0.0001818,2]
[354170929,1740327040773,-500.0,0.0001818,2]
[354170931,1740327040782,-500.0,0.0001818,2]
[354170933,1740327040791,-500.0,0.0001818,2]
[354170935,1740327040800,-500.0,0.0001818,2]
[354170937,1740327040809,-500.0,0.0001818,2]
[354170939,1740327040818,-500.0,0.0001818,2]
[354170941,1740327040827,-509.47741987,0.0001818,2]
[354170943,1740327040836,-500.0,0.0001818,2]
[354170945,1740327040846,-500.0,0.0001818,2]
[354170959,1740327040965,-500.0,0.0001818,2]
[354170961,1740327040974,-500.0,0.0001818,2]
[354170963,1740327040984,-500.0,0.0001818,2]
[354170965,1740327040993,-500.0,0.0001818,2]
[354170967,1740327041003,-500.0,0.0001818,2]
[354170969,1740327041012,-500.0,0.0001818,2]
[354170971,1740327041022,-500.0,0.0001818,2]
[354170973,1740327041031,-199.14494572,0.0001818,2]
[354170975,1740327041040,-500.0,0.0001818,2]
[354170977,1740327041050,-641.55,0.0001818,2]
[354170979,1740327041059,-500.0,0.0001818,2]
[354170981,1740327041068,-500.0,0.0001818,2]
[354170983,1740327041078,-500.0,0.0001818,2]
[354170985,1740327041087,-500.0,0.0001818,2]
[354170987,1740327041096,-500.0,0.0001818,2]
[354170989,1740327041105,-801.58,0.0001818,2]
[354170991,1740327041114,-500.0,0.0001818,2]
[354170993,1740327041123,-500.0,0.0001818,2]
[354170995,1740327041132,-500.0,0.0001818,2]
[354170997,1740327041141,-500.0,0.0001818,2]
[354170999,1740327041151,-500.0,0.0001818,2]
[354171001,1740327041160,-500.0,0.0001818,2]
[354171003,1740327041169,-500.0,0.0001818,2]
[354171005,1740327041179,-500.0,0.0001818,2]
[354171007,1740327041188,-500.0,0.0001818,2]
[354171009,1740327041198,-961.45,0.0001818,2]
[354171011,1740327041207,-500.0,0.0001818,2]
[354171013,1740327041216,-500.0,0.0001818,2]
[354171015,1740327041226,-500.0,0.0001818,2]
[354171017,1740327041235,-500.0,0.0001818,2]
[354171019,1740327041245,-500.0,0.0001818,2]
[354171021,1740327041254,-500.0,0.0001818,2]
[354171024,1740327041263,-500.0,0.0001818,2]
[354171025,1740327041272,-500.0,0.0001818,2]
[354171027,1740327041281,-500.0,0.0001818,2]
[354171029,1740327041290,-500.0,0.0001818,2]
[354171031,1740327041299,-500.0,0.0001818,2]
[354171033,1740327041309,-500.0,0.0001818,2]
[354171035,1740327041318,-2420.83477939,0.0001818,2]
[354171037,1740327041327,-478.2780455,0.00018183,2]
[354171040,1740327041339,-424.36076721,0.00018183,2]
[354171204,1740327043061,-433.5840325,0.00018183,2]
[354171206,1740327043072,-828.41368654,0.00018183,2]
[354171209,1740327043083,-2677.03302703,0.00018183,2]
[354171211,1740327043093,-169.49675623,0.00018188,2]
[354171213,1740327043104,-717.8377073,0.00018188,2]
[354171215,1740327043114,-1184.19306448,0.00018189,2]
[354171217,1740327043125,-1556.27698277,0.00018189,2]
[354171219,1740327043136,-353.7492124,0.00018189,2]
[354171221,1740327043147,-304.31004035,0.00018189,2]
[354171223,1740327043156,-468.51850219,0.00018189,2]
[354171226,1740327043167,-769.6000105,0.00018189,2]
[354171228,1740327043178,-330.06898731,0.00018189,2]
[354171230,1740327043187,-2045.8616,0.00018189,2]
[354171232,1740327043196,-1919.41774041,0.00018189,2]
[354171234,1740327043207,-1360.84995,0.00018189,2]
[354171236,1740327043218,-698.384581,0.00018189,2]
[354171239,1740327043230,-3521.34772859,0.00018189,2]
[354171241,1740327043239,-11056.3914,0.00018189,2]
[354171243,1740327043248,-8047.1289,0.0001819,2]
[354171245,1740327043258,-5946.33445803,0.00018193,2]
[354171247,1740327043267,-1177.6636,0.00018199,2]
[354171249,1740327043277,-462.3047,0.000182,2]
[354171251,1740327043286,-314.47469915,0.000182,2]
[354171253,1740327043295,-2420.83477939,0.00018217,2]
[354171255,1740327043304,-156.34424983,0.00018222,2]
[354171257,1740327043313,-887.33446353,0.00018223,2]
[354171259,1740327043323,-5946.33445803,0.00018227,2]
[354171261,1740327043332,-150.0,0.00018245,2]
[354171263,1740327043341,-150.0,0.00018249,2]
[354171265,1740327043350,-2420.83477939,0.00018252,2]
[354171267,1740327043359,-887.33446353,0.00018259,2]
[354171269,1740327043368,-2420.83477939,0.00018259,2]
[354171271,1740327043377,-5946.33445803,0.00018262,2]
[354171273,1740327043387,-500.0,0.00018263,2]
[354171275,1740327043396,-500.0,0.00018263,2]
[354171277,1740327043405,-500.0,0.00018263,2]
[354171279,1740327043414,-500.0,0.00018263,2]
[354171281,1740327043423,-500.0,0.00018263,2]
[354171283,1740327043432,-500.0,0.00018263,2]
[354171285,1740327043442,-500.0,0.00018263,2]
[354171287,1740327043451,-500.0,0.00018263,2]
[354171289,1740327043461,-500.0,0.00018263,2]
[354171291,1740327043470,-500.0,0.00018263,2]
[354171293,1740327043479,-500.0,0.00018263,2]
[354171295,1740327043489,-500.0,0.00018263,2]
[354171298,1740327043498,-500.0,0.00018263,2]
[354171301,1740327043507,-500.0,0.00018263,2]
[354171304,1740327043516,-500.0,0.00018263,2]
[354171307,1740327043525,-500.0,0.00018263,2]
[354171310,1740327043534,-500.0,0.00018263,2]
[354171313,1740327043543,-641.55,0.00018263,2]
[354171315,1740327043551,-500.0,0.00018263,2]
[354171317,1740327043560,-500.0,0.00018263,2]
[354171318,1740327043569,-500.0,0.00018263,2]
[354171319,1740327043578,-500.0,0.00018263,2]
[354171321,1740327043587,-500.0,0.00018263,2]
[354171323,1740327043596,-801.58,0.00018263,2]
[354171325,1740327043605,-500.0,0.00018263,2]
[354171327,1740327043615,-500.0,0.00018263,2]
[354171329,1740327043623,-500.0,0.00018263,2]
[354171331,1740327043633,-500.0,0.00018263,2]
[354171333,1740327043642,-500.0,0.00018263,2]
[354171335,1740327043652,-500.0,0.00018263,2]
[354171337,1740327043661,-500.0,0.00018263,2]
[354171340,1740327043673,-500.0,0.00018263,2]
[354171342,1740327043683,-961.45,0.00018263,2]
[354171344,1740327043692,-500.0,0.00018263,2]
[354171346,1740327043701,-500.0,0.00018263,2]
[354171348,1740327043712,-500.0,0.00018263,2]
[354171349,1740327043722,-500.0,0.00018263,2]
[354171352,1740327043732,-500.0,0.00018263,2]
[354171353,1740327043741,-500.0,0.00018263,2]
[354171367,1740327043852,-500.0,0.00018263,2]
[354171368,1740327043862,-500.0,0.00018263,2]
[354171370,1740327043871,-500.0,0.00018263,2]
[354171372,1740327043880,-500.0,0.00018263,2]
[354171374,1740327043889,-500.0,0.00018263,2]
[354171376,1740327043898,-150.0,0.00018269,2]
[354171378,1740327043907,-174.28893872,0.00018269,2]
[354171380,1740327043917,-168.378923,0.00018269,2]
[354171382,1740327043926,-150.0,0.00018274,2]
[354171384,1740327043935,-150.0,0.00018276,2]
[354171386,1740327043944,-150.0,0.00018277,2]
[354171388,1740327043954,-9683.33911756,0.00018279,2]
[354171390,1740327043963,-36312.5216909,0.00018279,2]
[354171392,1740327043973,-29688.05134801,0.00018279,2]
[354171393,1740327043989,-6128.10690623,0.00018279,2]
[354171394,1740327044000,-6660.35750267,0.00018279,2]
[354171395,1740327044011,-8880.41721204,0.00018279,2]
[354171396,1740327044022,-21309.06876805,0.00018279,2]
[354171397,1740327044031,-150.0,0.00018281,2]
[354171398,1740327044040,-7266.6001737,0.00018286,2]
[354171399,1740327044049,-300.0,0.00018288,2]
[354171400,1740327044057,-300.0,0.00018288,2]
[354171401,1740327044065,-159102.10446306,0.00018289,2]
[354171402,1740327044076,-342.97399631,0.00018289,2]
[354171403,1740327044088,-420.12536163,0.00018289,2]
[354171405,1740327044097,-500.0,0.00018289,2]
[354171407,1740327044107,-500.0,0.00018289,2]
[354171409,1740327044116,-500.0,0.00018289,2]
[354171411,1740327044125,-500.0,0.00018289,2]
[354171413,1740327044134,-76.41282773,0.00018289,2]
[354171415,1740327044154,-423.58717227,0.00018289,2]
[354171416,1740327044163,-11.91503927,0.00018289,2]
[354171417,1740327044174,-488.08496073,0.00018289,2]
[354171418,1740327044184,-127.9055458,0.00018289,2]
[354171419,1740327044195,-372.0944542,0.00018289,2]
[354171420,1740327044204,-500.0,0.00018289,2]
[354171421,1740327044214,-500.0,0.00018289,2]
[354171422,1740327044223,-500.0,0.00018289,2]
[354171423,1740327044232,-500.0,0.00018289,2]
[354171424,1740327044241,-500.0,0.00018289,2]
[354171425,1740327044250,-500.0,0.00018289,2]
[354171426,1740327044259,-500.0,0.00018289,2]
[354171427,1740327044268,-500.0,0.00018289,2]
[354171428,1740327044278,-500.0,0.00018289,2]
[354171429,1740327044287,-500.0,0.00018289,2]
[354171430,1740327044296,-500.0,0.00018289,2]
[354171431,1740327044306,-500.0,0.00018289,2]
[354171432,1740327044315,-500.0,0.00018289,2]
[354171433,1740327044324,-283.80382598,0.00018289,2]
[354171434,1740327044335,-216.19617402,0.00018289,2]
[354171435,1740327044344,-500.0,0.00018289,2]
[354171436,1740327044353,-93.65665401,0.00018289,2]
[354171437,1740327044368,-406.34334599,0.00018289,2]
[354171438,1740327044378,-500.0,0.00018289,2]
[354171439,1740327044388,-500.0,0.00018289,2]
[354171440,1740327044399,-500.0,0.00018289,2]
[354171441,1740327044408,-500.0,0.00018289,2]
[354171442,1740327044418,-500.0,0.00018289,2]
[354171443,1740327044427,-500.0,0.00018289,2]
[354171444,1740327044436,-500.0,0.00018289,2]
[354171445,1740327044445,-500.0,0.00018289,2]
[354171446,1740327044454,-500.0,0.00018289,2]
[354171447,1740327044463,-500.0,0.00018289,2]
[354171448,1740327044472,-500.0,0.00018289,2]
[354171449,1740327044481,-500.0,0.00018289,2]
[354171450,1740327044490,-500.0,0.00018289,2]
[354171451,1740327044499,-500.0,0.00018289,2]
[354171452,1740327044508,-500.0,0.00018289,2]
[354171453,1740327044517,-500.0,0.00018289,2]
[354171454,1740327044526,-500.0,0.00018289,2]
[354171455,1740327044535,-500.0,0.00018289,2]
[354171456,1740327044545,-386.13072676,0.00018289,2]
[354171457,1740327044557,-113.86927324,0.00018289,2]
[354171458,1740327044566,-500.0,0.00018289,2]
[354171459,1740327044575,-500.0,0.00018289,2]
[354171460,1740327044584,-500.0,0.00018289,2]
[354171461,1740327044594,-500.0,0.00018289,2]
[354171462,1740327044603,-500.0,0.00018289,2]
[354171463,1740327044613,-500.0,0.00018289,2]
[354171464,1740327044623,-500.0,0.00018289,2]
[354171465,1740327044632,-500.0,0.00018289,2]
[354171466,1740327044642,-500.0,0.00018289,2]
[354171467,1740327044651,-500.0,0.00018289,2]
[354171468,1740327044661,-500.0,0.00018289,2]
[354171469,1740327044671,-500.0,0.00018289,2]
[354171470,1740327044681,-500.0,0.00018289,2]
[354171471,1740327044690,-119.13173661,0.00018289,2]
[354171472,1740327044702,-380.86826339,0.00018289,2]
[354171473,1740327044712,-51.61864561,0.00018289,2]
[354171474,1740327044724,-448.38135439,0.00018289,2]
[354171475,1740327044733,-46.84864561,0.00018289,2]
[354171486,1740327046452,-500.0,0.0001818,2]
[354171489,1740327046467,-197.67902002,0.00018245,2]
[354171492,1740327046487,-114.11371281,0.00018245,2]
[354171495,1740327046502,-500.0,0.00018263,2]
[354171498,1740327046517,-453.15135439,0.00018289,2]
[354171500,1740327046531,-262.17493312,0.00018289,2]
[354171505,1740327046566,-237.82506688,0.00018289,2]
[354171508,1740327046581,-73.46813312,0.00018289,2]
[354171510,1740327046659,-273.06265676,0.00018289,2]
[354171511,1740327046678,-500.0,0.00018289,2]
[354171513,1740327046694,-500.0,0.00018289,2]
[354171516,1740327046713,-500.0,0.00018289,2]
[354171519,1740327046729,-500.0,0.00018289,2]
[354171521,1740327046744,-500.0,0.00018289,2]
[354171524,1740327046760,-500.0,0.00018289,2]
[354171526,1740327046776,-500.0,0.00018289,2]
[354171529,1740327046791,-500.0,0.00018289,2]
[354171532,1740327046805,-500.0,0.00018289,2]
[354171534,1740327046820,-500.0,0.00018289,2]
[354171537,1740327046834,-500.0,0.00018289,2]
[354171539,1740327046849,-500.0,0.00018289,2]
[354171542,1740327046864,-500.0,0.00018289,2]
[354171544,1740327046879,-500.0,0.00018289,2]
[354171547,1740327046895,-500.0,0.00018289,2]
[354171550,1740327046909,-500.0,0.00018289,2]
[354171552,1740327046924,-500.0,0.00018289,2]
[354171555,1740327046939,-500.0,0.00018289,2]
[354171558,1740327046955,-500.0,0.00018289,2]
[354171560,1740327046969,-500.0,0.00018289,2]
[354171563,1740327046984,-500.0,0.00018289,2]
[354171565,1740327046999,-500.0,0.00018289,2]
[354171568,1740327047014,-506.54814756,0.00018289,2]
[354171571,1740327047029,-500.0,0.00018289,2]
[354171573,1740327047044,-500.0,0.00018289,2]
[354171576,1740327047059,-500.0,0.00018289,2]
[354171578,1740327047074,-500.15198573,0.00018289,2]
[354171581,1740327047088,-500.0,0.00018289,2]
[354171583,1740327047103,-500.0,0.00018289,2]
[354171586,1740327047118,-500.0,0.00018289,2]
[354171589,1740327047135,-500.0,0.00018289,2]
[354171591,1740327047149,-500.0,0.00018289,2]
[354171593,1740327047159,-500.0,0.00018289,2]
[354171595,1740327047168,-500.0,0.00018289,2]
[354171597,1740327047177,-500.0,0.00018289,2]
[354171620,1740327047371,-500.0,0.00018289,2]
[354171623,1740327047395,-500.0,0.00018289,2]
[354171625,1740327047405,-500.0,0.00018289,2]
[354171627,1740327047414,-500.0,0.00018289,2]
[354171629,1740327047423,-500.0,0.00018289,2]
[354171631,1740327047433,-500.0,0.00018289,2]
[354171633,1740327047442,-500.0,0.00018289,2]
[354171635,1740327047450,-500.0,0.00018289,2]
[354171637,1740327047459,-500.0,0.00018289,2]
[354171639,1740327047468,-500.0,0.00018289,2]
[354171641,1740327047478,-500.0,0.00018289,2]
[354171643,1740327047487,-500.0,0.00018289,2]
[354171645,1740327047496,-500.0,0.00018289,2]
[354171647,1740327047505,-324.09482875,0.00018289,2]
[354171649,1740327047514,-500.0,0.00018289,2]
[354171651,1740327047523,-500.0,0.00018289,2]
[354171653,1740327047531,-500.0,0.00018289,2]
[354171655,1740327047540,-1097.88170037,0.00018289,2]
[354171657,1740327047549,-500.0,0.00018289,2]
[354171659,1740327047559,-500.0,0.00018289,2]
[354171661,1740327047567,-500.30206794,0.00018289,2]
[354171663,1740327047577,-500.0,0.00018289,2]
[354171665,1740327047586,-238.40214437,0.00018289,2]
[354171667,1740327047594,-500.0,0.00018289,2]
[354171669,1740327047603,-500.0,0.00018289,2]
[354171671,1740327047612,-500.0,0.00018289,2]
[354171673,1740327047621,-500.0,0.00018289,2]
[354171675,1740327047630,-500.0,0.00018289,2]
[354171677,1740327047639,-500.0,0.00018289,2]
[354171679,1740327047648,-192.64698816,0.00018289,2]
[354171681,1740327047657,-500.0,0.00018289,2]
[354171683,1740327047668,-500.0,0.00018289,2]
[354171685,1740327047681,-500.0,0.00018289,2]
[354171687,1740327047690,-192.4589637,0.00018289,2]
[354171688,1740327047699,-500.0,0.00018289,2]
[354171690,1740327047710,-500.0,0.00018289,2]
[354171692,1740327047721,-500.0,0.00018289,2]
[354171695,1740327047731,-500.0,0.00018289,2]
[354171696,1740327047740,-500.0,0.00018289,7]
[354171699,1740327047750,-500.0,0.00018289,2]
[354171701,1740327047759,-500.0,0.00018289,2]
[354171703,1740327047768,-500.0,0.00018289,2]
[354171705,1740327047777,-500.0,0.00018289,2]
[354171707,1740327047786,-505.20122229,0.00018289,2]
[354171709,1740327047795,-500.0,0.00018289,2]
[354171711,1740327047804,-274.32092402,0.00018289,2]
[354171713,1740327047814,-500.0,0.00018289,2]
[354171714,1740327047823,-500.0,0.00018289,2]
[354171715,1740327047832,-500.0,0.00018289,2]
[354171716,1740327047842,-317.64257973,0.00018289,2]
[354171717,1740327047851,-500.0,0.00018289,2]
[354171718,1740327047861,-500.0,0.00018289,2]
[354171719,1740327047870,-500.0,0.00018289,2]
[354171720,1740327047879,-500.0,0.00018289,2]
[354171721,1740327047888,-500.0,0.00018289,2]
[354171722,1740327047897,-500.0,0.00018289,2]
[354171723,1740327047906,-500.0,0.00018289,2]
[354171724,1740327047915,-500.0,0.00018289,2]
[354171725,1740327047924,-500.0,0.00018289,2]
[354171726,1740327047933,-500.0,0.00018289,2]
[354171727,1740327047943,-500.0,0.00018289,2]
[354171728,1740327047952,-500.0,0.00018289,2]
[354171729,1740327047962,-500.0,0.00018289,2]
[354171730,1740327047971,-500.0,0.00018289,2]
[354171731,1740327047981,-500.0,0.00018289,2]